bitfinex/quotes_SOLUSD_20241008
["timestamp","ask_amount","ask_price","bid_price","bid_amount"]
[1728429457198,9.29721043,142.97,142.95,15.4868]
[1728429457405,6.994,142.98,142.95,15.4868]
[1728429457406,4.13333512,142.96,142.95,15.4868]
[1728429458206,4.13390362,142.96,142.95,15.4868]
[1728429458596,4.13390362,142.97,142.95,15.4868]
[1728429458798,4.13390362,142.96,142.95,15.4868]
[1728429460806,4.13390362,142.96,142.94,6.9955]
[1728429461009,6.994,142.98,142.94,6.9955]
[1728429461186,9.29948986,142.97,142.94,6.9955]
[1728429461386,4.13606827,142.96,142.94,6.9955]
[1728429461605,6.994,142.98,142.94,6.9955]
[1728429461808,9.30052432,142.97,142.94,6.9955]
[1728429462114,4.13697679,142.96,142.94,6.9955]
[1728429462302,6.994,142.98,142.94,6.9955]
[1728429462500,9.3009684,142.97,142.94,6.9955]
[1728429462705,4.13733191,142.96,142.94,6.9955]
[1728429462892,6.994,142.98,142.94,6.9955]
[1728429463089,9.30084352,142.97,142.94,6.9955]
[1728429463303,4.13720703,142.96,142.94,6.9955]
[1728429463487,6.994,142.98,142.94,6.9955]
[1728429463685,9.30094595,142.97,142.94,6.9955]
[1728429463899,4.13730216,142.96,142.94,6.9955]
[1728429464096,6.994,142.98,142.94,6.9955]
[1728429464307,9.30088241,142.97,142.94,6.9955]
[1728429464603,4.13728102,142.96,142.94,6.9955]
[1728429464791,6.994,142.98,142.94,6.9955]
[1728429464991,5.16191602,142.97,142.94,6.9955]
[1728429465198,4.13581176,142.97,142.94,6.9955]
[1728429465412,4.13581176,142.96,142.94,6.9955]
[1728429465585,6.994,142.98,142.94,6.9955]
[1728429465905,9.29540955,142.97,142.94,6.9955]
[1728429466106,4.13469835,142.96,142.94,6.9955]
[1728429466287,6.994,142.98,142.94,6.9955]
[1728429466488,9.2955907,142.97,142.94,6.9955]
[1728429466699,4.13468889,142.96,142.94,6.9955]
[1728429466909,6.994,142.98,142.94,6.9955]
[1728429467106,9.29610428,142.97,142.94,6.9955]
[1728429467306,4.13492171,142.96,142.94,6.9955]
[1728429467604,6.994,142.98,142.94,6.9955]
[1728429467789,9.29660982,142.97,142.94,6.9955]
[1728429467987,4.13502147,142.96,142.94,6.9955]
[1728429468306,6.994,142.98,142.94,6.9955]
[1728429468505,9.29704785,142.97,142.94,6.9955]
[1728429468697,4.13535518,142.96,142.94,6.9955]
[1728429468900,6.994,142.98,142.94,6.9955]
[1728429469097,9.29704298,142.97,142.94,6.9955]
[1728429469311,4.13535301,142.96,142.94,6.9955]
[1728429469505,6.994,142.98,142.94,6.9955]
[1728429469705,9.29743621,142.97,142.94,6.9955]
[1728429469901,4.13563843,142.96,142.94,6.9955]
[1728429470102,6.994,142.98,142.94,6.9955]
[1728429470308,9.29815288,142.97,142.94,6.9955]
[1728429470508,4.13606127,142.96,142.94,6.9955]
[1728429470707,6.994,142.98,142.94,6.9955]
[1728429471612,4.13710845,142.97,142.94,6.9955]
[1728429472344,5.16494212,142.97,142.94,6.9955]
[1728429472991,8.27472866,142.96,142.94,6.9955]
[1728429473503,4.13736433,142.96,142.94,6.9955]
[1728429475617,4.13736433,142.96,142.94,6.9955]
[1728429476819,9.31172348,142.95,142.94,6.9955]
[1728429480209,9.31305225,142.95,142.94,6.9955]
[1728429481908,9.31305225,142.95,142.93,24.4864]
[1728429482226,4.13736433,142.96,142.93,24.4864]
[1728429482527,9.31964278,142.95,142.93,24.4864]
[1728429482720,4.13736433,142.96,142.93,24.4864]
[1728429483023,9.31922476,142.95,142.93,24.4864]
[1728429483326,6.9945,142.97,142.93,23.9864]
[1728429483519,9.31992462,142.96,142.93,23.9864]
[1728429483725,9.31992462,142.95,142.93,23.9864]
[1728429484029,10.35577352,142.94,142.93,23.9864]
[1728429484701,14.4993497,142.94,142.93,23.9864]
[1728429486706,14.50009145,142.94,142.93,23.9864]
[1728429487618,14.50022598,142.94,142.93,23.9864]
[1728429489709,22.78448899,142.94,142.93,23.9864]
[1728429490232,18.64459438,142.94,142.93,23.9865]
[1728429490531,22.790745,142.94,142.93,23.9865]
[1728429490710,26.93697072,142.94,142.93,23.9865]
[1728429491222,26.93697072,142.94,142.93,36.9262841]
[1728429491429,14.50662796,142.94,142.93,36.9262841]
[1728429493024,14.50662796,142.94,142.93,23.9865]
[1728429493230,10.36040224,142.94,142.93,23.9865]
[1728429493736,14.50266815,142.94,142.93,23.9865]
[1728429493911,22.7857264,142.94,142.93,23.9865]
[1728429494606,22.7857264,142.94,142.9,31.038]
[1728429494924,22.7857264,142.93,142.9,24.4914]
[1728429495117,14.50266815,142.92,142.91,6.9974]
[1728429495702,22.78235064,142.92,142.91,6.9974]
[1728429496104,22.78235064,142.92,142.88,0.8607254]
[1728429496331,22.78235064,142.91,142.88,0.8607254]
[1728429496500,22.78235064,142.9,142.88,0.8607254]
[1728429496703,14.50266815,142.89,142.88,0.8607254]
[1728429497221,14.50266815,142.89,142.88,7.8594254]
[1728429497407,14.49404557,142.89,142.88,7.8594254]
[1728429498209,10.35793345,142.89,142.88,7.8594254]
[1728429499229,5.1770152,142.89,142.88,7.8594254]
[1728429499534,5.1770152,142.89,142.88,20.7992095]
[1728429499705,30.772184,142.96,142.91,6.9969]
[1728429499901,14.46248685,142.95,142.91,6.9969]
[1728429500226,14.46248685,142.94,142.91,6.9969]
[1728429500409,14.46248685,142.93,142.91,6.9969]
[1728429500613,10.32931978,142.92,142.91,6.9969]
[1728429500916,14.46109566,142.92,142.91,6.9969]
[1728429501615,14.46109566,142.92,142.9,17.4935]
[1728429501820,14.46109566,142.91,142.89,6.9983]
[1728429502026,4.95572018,142.97,142.88,0.8607254]
[1728429502027,10.32931978,142.9,142.88,0.8607254]
[1728429502206,5.1659776,142.89,142.88,0.8607254]
[1728429503125,5.1659776,142.89,142.88,7.8594254]
[1728429504120,6.9965,142.93,142.88,7.8594254]
[1728429504431,9.28983989,142.92,142.88,7.8594254]
[1728429504621,5.16237705,142.91,142.88,7.8594254]
[1728429504805,5.16237705,142.9,142.88,0.8607254]
[1728429505011,5.1610038,142.89,142.88,0.8607254]
[1728429506512,9.28417888,142.89,142.88,0.8607254]
[1728429507343,5.1610038,142.89,142.88,0.8607254]
[1728429508707,9.27857964,142.89,142.88,0.8607254]
[1728429509327,5.1610038,142.89,142.88,0.8607254]
[1728429510426,29.73108286,142.95,142.91,6.9973]
[1728429510627,9.26363429,142.94,142.9,17.4945]
[1728429510828,9.26363429,142.93,142.9,24.4922]
[1728429511032,9.26363429,142.92,142.9,24.4922]
[1728429511213,5.14797111,142.91,142.9,24.4922]
[1728429511637,5.14705757,142.91,142.9,24.4922]
[1728429513138,14.23838286,142.95,142.9,17.4945]
[1728429513344,9.26161889,142.94,142.9,30.4342841]
[1728429513525,5.14646813,142.93,142.92,6.9965]
[1728429513938,6.994,142.98,142.94,6.9958]
[1728429514242,7.23933477,142.99,142.93,14.3389106]
[1728429514243,9.26328388,142.97,142.93,14.3389106]
[1728429514448,15.41121519,143.0,142.95,6.9954]
[1728429514449,5.14738359,142.96,142.95,6.9954]
[1728429514641,5.14738359,142.96,142.94,30.4289841]
[1728429514847,6.9931,143.0,142.95,6.9954]
[1728429515045,15.9547,143.01,142.94,30.4289841]
[1728429515228,5.14847614,142.99,142.96,6.9949]
[1728429515426,5.14847614,142.98,142.96,6.9949]
[1728429515627,5.14847614,142.97,142.96,6.9949]
[1728429516034,22.9472,143.01,142.96,6.9949]
[1728429516035,5.14847614,143.0,142.96,6.9949]
[1728429516232,22.9472,143.01,142.96,6.9949]
[1728429516233,9.26585804,142.99,142.96,6.9949]
[1728429516447,9.26585804,142.98,142.96,6.9949]
[1728429516742,5.14847614,142.97,142.96,6.9949]
[1728429516931,5.14847614,143.0,142.96,6.9949]
[1728429517132,9.26638738,142.99,142.96,6.9949]
[1728429517379,9.26638738,142.98,142.96,6.9949]
[1728429517552,5.14847614,142.97,142.96,6.9949]
[1728429518538,6.993,143.0,142.96,6.9949]
[1728429518743,5.15044979,142.99,142.96,6.9949]
[1728429518945,5.15044979,142.98,142.96,6.9949]
[1728429519250,5.15044979,142.97,142.96,6.9949]
[1728429519754,5.15044979,142.97,142.95,6.9953]
[1728429519958,5.15044979,142.96,142.95,6.9953]
[1728429522458,6.993,143.0,142.95,6.9953]
[1728429522658,9.27063985,142.99,142.95,6.9953]
[1728429522838,9.27063985,142.98,142.95,6.9953]
[1728429523036,5.15053992,142.97,142.95,6.9953]
[1728429523260,5.15053992,142.96,142.95,6.9953]
[1728429524754,6.993,143.0,142.95,6.9953]
[1728429524943,9.27167816,142.99,142.95,6.9953]
[1728429525240,9.27167816,142.98,142.95,6.9953]
[1728429525438,5.15094124,142.97,142.96,6.9949]
[1728429525648,5.15094124,142.97,142.95,6.9953]
[1728429525956,6.993,143.0,142.95,6.9953]
[1728429526137,9.27270202,142.99,142.96,6.9949]
[1728429526337,9.27270202,142.98,142.96,6.9949]
[1728429526536,5.15143832,142.97,142.96,6.9949]
[1728429527055,5.15143832,142.99,142.96,6.9949]
[1728429527355,5.15143832,142.98,142.96,6.9949]
[1728429527654,5.15143832,142.97,142.96,6.9949]
[1728429527850,5.15143832,142.99,142.96,6.9949]
[1728429528046,9.27312829,142.98,142.96,6.9949]
[1728429528346,6.993,143.0,142.96,6.9949]
[1728429528347,5.15143832,142.97,142.96,6.9949]
[1728429528749,5.15143832,142.97,142.95,6.9953]
[1728429528951,6.993,143.0,142.95,6.9953]
[1728429529158,9.27366228,142.99,142.95,6.9953]
[1728429529364,9.27366228,142.98,142.95,6.9953]
[1728429529659,5.15190358,142.97,142.95,6.9953]
[1728429529855,15.9547,143.01,142.95,6.9953]
[1728429530160,6.9937,142.99,142.94,24.485]
[1728429530346,9.27386986,142.98,142.94,24.485]
[1728429530549,5.15203351,142.97,142.94,24.485]
[1728429530737,6.9937,142.99,142.94,24.485]
[1728429530936,9.27425488,142.98,142.94,24.485]
[1728429531253,5.15224436,142.97,142.94,17.4892]
[1728429531464,15.9547,143.01,142.95,6.9954]
[1728429531761,16.26736297,143.0,142.95,6.9954]
[1728429531932,6.993,143.0,142.95,6.9954]
[1728429532138,9.27456565,142.99,142.95,6.9954]
[1728429532464,5.15249259,142.98,142.95,6.9954]
[1728429532641,5.15249259,142.97,142.95,6.9954]
[1728429532963,6.993,143.0,142.95,6.9954]
[1728429533265,9.2744011,142.99,142.95,6.9954]
[1728429533441,9.2744011,142.98,142.95,6.9954]
[1728429533642,5.15247917,142.97,142.95,6.9954]
[1728429533950,6.993,143.0,142.95,6.9954]
[1728429534148,9.27464833,142.99,142.95,6.9954]
[1728429534459,9.27464833,142.98,142.95,6.9954]
[1728429534656,5.15269716,142.97,142.95,6.9954]
[1728429534958,6.9935,142.99,142.95,6.9954]
[1728429535154,9.27475285,142.98,142.95,6.9954]
[1728429535360,5.15282092,142.97,142.95,6.9954]
[1728429535546,6.9935,142.99,142.95,6.9954]
[1728429535749,9.27489125,142.98,142.95,6.9954]
[1728429535951,5.15295795,142.97,142.95,6.9954]
[1728429536143,6.9935,142.99,142.95,6.9954]
[1728429536338,9.27493478,142.98,142.95,6.9954]
[1728429536539,5.15305836,142.97,142.95,6.9954]
[1728429536740,6.9935,142.99,142.95,6.9954]
[1728429536939,9.27497253,142.98,142.95,6.9954]
[1728429537147,5.15307933,142.97,142.94,17.4892]
[1728429537363,6.9935,142.99,142.94,24.485]
[1728429537658,9.27507372,142.98,142.94,24.485]
[1728429537860,6.9935,142.99,142.94,24.485]
[1728429537861,5.15320547,142.97,142.94,24.485]
[1728429538139,6.9935,142.99,142.95,6.9954]
[1728429538347,9.27547063,142.98,142.95,6.9954]
[1728429538570,5.15338931,142.97,142.95,6.9954]
[1728429538863,6.9935,142.99,142.95,6.9954]
[1728429539055,9.27542716,142.98,142.95,6.9954]
[1728429539362,5.15336336,142.97,142.95,6.9954]
[1728429539544,6.9935,142.99,142.95,6.9954]
[1728429539746,16.26978567,142.98,142.94,24.485]
[1728429539947,5.15347428,142.97,142.94,24.485]
[1728429540268,6.9938,142.99,142.95,8.39442902]
[1728429540447,9.27578147,142.98,142.95,6.9954]
[1728429540646,5.15353549,142.97,142.95,6.9954]
[1728429540859,6.9944,142.98,142.94,17.4892]
[1728429541050,5.15412137,142.97,142.94,24.4851]
[1728429542167,6.9936,142.99,142.94,24.4851]
[1728429542385,5.15454638,142.98,142.94,24.4851]
[1728429542668,5.15454638,142.97,142.94,24.4851]
[1728429542860,6.9936,142.99,142.94,24.4851]
[1728429543063,9.27712351,142.98,142.94,24.4851]
[1728429543255,5.15462205,142.97,142.94,24.4851]
[1728429543455,6.9936,142.99,142.94,24.4851]
[1728429543662,9.27777553,142.98,142.94,24.4851]
[1728429543865,5.15501188,142.97,142.94,24.4851]
[1728429544065,6.9936,142.99,142.94,24.4851]
[1728429544370,9.27785053,142.98,142.94,30.4289841]
[1728429544567,15.9547,143.01,142.94,30.4289841]
[1728429544568,5.15505354,142.97,142.96,6.9948]
[1728429544774,5.15505354,142.99,142.96,6.9948]
[1728429545070,9.27797649,142.98,142.96,6.9948]
[1728429545272,5.15505354,142.97,142.96,6.9948]
[1728429545579,5.15514125,142.97,142.95,6.9952]
[1728429545877,6.9931,143.0,142.95,6.9952]
[1728429546059,9.27676642,142.99,142.95,6.9952]
[1728429546257,9.27676642,142.98,142.95,6.9952]
[1728429546575,5.15432474,142.97,142.95,6.9952]
[1728429546775,6.9931,143.0,142.95,6.9952]
[1728429546977,9.27445218,142.99,142.95,6.9952]
[1728429547178,9.27445218,142.98,142.95,6.9952]
[1728429547484,5.15296669,142.97,142.95,6.9952]
[1728429547666,6.9935,142.99,142.95,6.9952]
[1728429547859,9.2741535,142.98,142.95,6.9952]
[1728429548060,6.9935,142.99,142.95,6.9952]
[1728429548061,5.15279072,142.97,142.95,6.9952]
[1728429548281,6.9935,142.99,142.95,6.9952]
[1728429548486,9.27455915,142.98,142.95,6.9952]
[1728429548780,5.15287404,142.97,142.95,6.9952]
[1728429549086,6.9935,142.99,142.95,6.9952]
[1728429549259,9.27455915,142.98,142.95,6.9952]
[1728429549459,5.1528776,142.97,142.95,6.9952]
[1728429549681,6.9935,142.99,142.95,6.9952]
[1728429549859,9.27388195,142.98,142.95,6.9952]
[1728429550159,5.15230706,142.97,142.95,6.9952]
[1728429550359,6.9935,142.99,142.95,6.9952]
[1728429550687,9.27247297,142.98,142.95,6.9952]
[1728429550888,5.15129516,142.97,142.95,6.9952]
[1728429551184,6.9935,142.99,142.95,6.9952]
[1728429551387,9.27303861,142.98,142.95,6.9952]
[1728429551590,5.1512572,142.97,142.95,6.9952]
[1728429551766,6.9935,142.99,142.95,6.9952]
[1728429552079,4.12178808,142.98,142.95,6.9952]
[1728429552290,4.12179169,142.98,142.95,6.9952]
[1728429552479,5.15127005,142.97,142.95,6.9952]
[1728429552867,6.9935,142.99,142.95,6.9952]
[1728429553062,9.27473278,142.98,142.95,6.9952]
[1728429553262,9.27637991,142.97,142.95,6.9952]
[1728429553485,6.9935,142.99,142.95,6.9952]
[1728429553672,9.27653097,142.98,142.95,6.9952]
[1728429553875,9.27653097,142.97,142.95,6.9952]
[1728429554078,6.9935,142.99,142.95,6.9952]
[1728429554384,9.27767503,142.98,142.95,6.9952]
[1728429554685,9.27767503,142.97,142.95,6.9952]
[1728429554990,6.9935,142.99,142.95,6.9952]
[1728429555297,9.28095989,142.98,142.95,6.9952]
[1728429555581,9.28095989,142.97,142.95,6.9952]
[1728429555883,4.12766158,142.96,142.95,6.9952]
[1728429556091,4.12766158,142.98,142.95,6.9952]
[1728429556387,9.28223044,142.97,142.95,6.9952]
[1728429556563,4.12766158,142.96,142.95,6.9952]
[1728429562293,9.28555588,142.96,142.95,6.9952]
[1728429563473,9.28555588,142.96,142.93,6.996]
[1728429563779,9.28555588,142.95,142.93,6.996]
[1728429563979,4.12766158,142.94,142.93,6.996]
[1728429565190,9.28629816,142.94,142.93,6.996]
[1728429565362,4.12766158,142.94,142.93,6.996]
[1728429565570,5.15957154,142.94,142.93,6.996]
[1728429565873,9.30579347,142.94,142.93,6.996]
[1728429566084,4.14622193,142.94,142.93,6.996]
[1728429566764,4.14622193,142.94,142.91,17.4927]
[1728429566970,9.30622032,142.93,142.91,24.4899]
[1728429567192,4.14622193,142.92,142.91,24.4899]
[1728429569298,9.31496665,142.92,142.91,24.4899]
[1728429570397,9.31496665,142.92,142.91,17.4927]
[1728429570577,9.31496665,142.92,142.88,18.3570254]
[1728429570780,9.31496665,142.91,142.89,6.9982]
[1728429570982,9.31496665,142.9,142.89,6.9982]
[1728429571473,9.31496665,142.9,142.88,18.3570254]
[1728429571669,9.31496665,142.89,142.88,18.3570254]
[1728429574809,9.31496665,142.89,142.88,0.8607254]
[1728429575507,5.16874472,142.89,142.88,0.8607254]
[1728429578502,5.15990338,142.89,142.88,0.8607254]
[1728429585203,6.9975,142.91,142.88,0.8607254]
[1728429585405,5.15275079,142.89,142.88,0.8607254]
[1728429587188,5.15275079,142.89,142.88,9.25922642]
[1728429587508,6.996,142.94,142.89,6.998]
[1728429587716,9.26932572,142.93,142.89,6.998]
[1728429587901,9.26932572,142.92,142.89,6.998]
[1728429588086,9.26932572,142.91,142.89,6.998]
[1728429588409,5.15040263,142.9,142.89,6.998]
[1728429593611,5.15040263,142.9,142.88,7.8594254]
[1728429593785,6.9964,142.93,142.88,7.8594254]
[1728429594695,9.26854954,142.92,142.88,7.8594254]
[1728429594901,9.26854954,142.91,142.88,7.8594254]
[1728429595206,5.14915227,142.9,142.88,7.8594254]
[1728429595396,6.9964,142.93,142.88,7.8594254]
[1728429595601,9.26818232,142.92,142.88,7.8594254]
[1728429595808,9.26818232,142.91,142.88,7.8594254]
[1728429595988,5.14865778,142.9,142.88,7.8594254]
[1728429596184,6.9964,142.93,142.88,7.8594254]
[1728429596388,9.26835323,142.92,142.88,7.8594254]
[1728429596614,5.14862684,142.91,142.88,7.8594254]
[1728429596913,5.14862684,142.9,142.88,7.8594254]
[1728429597110,6.9964,142.93,142.88,7.8594254]
[1728429597315,9.26852865,142.92,142.88,7.8594254]
[1728429597612,9.26852865,142.91,142.88,7.8594254]
[1728429597785,5.14845928,142.9,142.88,7.8594254]
[1728429597989,6.9964,142.93,142.88,7.8594254]
[1728429598189,9.26867979,142.92,142.88,7.8594254]
[1728429598390,9.26867979,142.91,142.88,7.8594254]
[1728429598614,5.14848519,142.9,142.88,7.8594254]
[1728429598915,6.9964,142.93,142.88,7.8594254]
[1728429599113,9.26919172,142.92,142.88,7.8594254]
[1728429599317,9.26919172,142.91,142.88,7.8594254]
[1728429599514,5.14851922,142.9,142.88,7.8594254]
[1728429599696,6.9964,142.93,142.88,7.8594254]
[1728429599896,5.1483419,142.92,142.88,7.8594254]
[1728429600096,9.26940215,142.91,142.88,7.8594254]
[1728429600316,5.1483419,142.9,142.88,0.8607254]
[1728429600623,14.80416588,142.95,142.89,14.33923675]
[1728429600915,9.27108707,142.94,142.9,6.9974]
[1728429601209,9.27108707,142.93,142.9,6.9974]
[1728429601416,9.27108707,142.92,142.9,6.9974]
[1728429601605,5.1489454,142.91,142.89,17.4948]
[1728429601798,6.9969,142.92,142.89,17.4948]
[1728429601997,9.27013376,142.91,142.89,17.4948]
[1728429602199,6.9965,142.93,142.89,17.4948]
[1728429602424,9.27135419,142.92,142.89,17.4948]
[1728429602592,5.14839815,142.91,142.89,17.4948]
[1728429602915,15.07010356,142.96,142.89,17.4948]
[1728429602916,6.9957,142.95,142.91,6.9973]
[1728429603214,9.27198706,142.94,142.91,6.9973]
[1728429603400,9.27198706,142.93,142.91,6.9973]
[1728429603605,5.14879732,142.92,142.91,6.9973]
[1728429603813,5.14879732,142.94,142.91,6.9973]
[1728429604025,4.12458772,142.93,142.91,6.9973]
[1728429604227,5.14879732,142.92,142.91,6.9973]
[1728429604428,9.273935,142.92,142.91,6.9973]
[1728429605326,9.273935,142.92,142.89,17.4948]
[1728429605513,6.9964,142.93,142.89,17.4948]
[1728429605713,9.27687037,142.92,142.89,17.4948]
[1728429605908,9.27687037,142.91,142.89,17.4948]
[1728429606237,6.9964,142.93,142.89,17.4948]
[1728429606408,9.27839476,142.92,142.89,17.4948]
[1728429606732,9.27839476,142.91,142.89,17.4948]
[1728429606932,6.9964,142.93,142.89,17.4948]
[1728429607115,9.27829562,142.92,142.89,17.4948]
[1728429607474,9.27829562,142.91,142.89,17.4948]
[1728429607636,6.9964,142.93,142.89,17.4948]
[1728429607637,4.12769069,142.9,142.89,17.4948]
[1728429607815,4.12769069,142.92,142.89,17.4948]
[1728429608017,9.27861975,142.91,142.89,17.4948]
[1728429608211,4.12769069,142.9,142.89,17.4948]
[1728429608424,4.12769069,142.92,142.89,17.4948]
[1728429608732,9.27911654,142.91,142.89,17.4948]
[1728429608941,4.12769069,142.9,142.89,17.4948]
[1728429609423,4.12769069,142.92,142.89,17.4948]
[1728429609632,9.2784694,142.91,142.89,17.4948]
[1728429609812,4.12769069,142.9,142.89,17.4948]
[1728429610209,4.12769069,142.9,142.88,0.8607254]
[1728429610521,4.12769069,142.89,142.88,0.8607254]
[1728429611943,9.28089569,142.89,142.88,0.8607254]
[1728429613438,4.12769069,142.89,142.88,0.8607254]
[1728429613606,8.26527652,142.89,142.88,0.8607254]
[1728429613811,9.29177098,142.89,142.88,0.8607254]
[1728429616842,9.29832657,142.89,142.88,0.8607254]
[1728429617137,9.30699689,142.89,142.88,0.8607254]
[1728429623847,9.32025154,142.89,142.88,0.8607254]
[1728429625740,9.32250906,142.89,142.88,0.8607254]
[1728429627242,9.32250906,142.89,142.88,7.8595254]
[1728429628243,9.29238906,142.89,142.88,7.8595254]
[1728429630648,4.14851367,142.89,142.88,7.8595254]
[1728429630831,12.44654605,142.89,142.88,7.8595254]
[1728429634022,8.29803238,142.89,142.88,7.8595254]
[1728429634256,12.44667562,142.89,142.88,7.8595254]
[1728429637499,8.29803238,142.89,142.88,7.8595254]
[1728429637632,12.44615136,142.89,142.88,7.8595254]
[1728429640232,17.63214613,142.89,142.88,7.8595254]
[1728429640834,6.9969,142.92,142.88,7.8595254]
[1728429641049,8.29757099,142.89,142.88,0.8607254]
[1728429641260,13.48354634,142.89,142.88,0.8607254]
[1728429641457,17.63173996,142.89,142.88,0.8607254]
[1728429648076,17.62603579,142.89,142.88,0.8607254]
[1728429649669,24.62433579,142.89,142.84,7.0007]
[1728429649850,17.62603579,142.88,142.84,7.0007]
[1728429650053,9.33197907,142.87,142.84,7.0007]
[1728429650275,9.33197907,142.86,142.84,7.0007]
[1728429650477,9.33197907,142.85,142.84,7.0007]
[1728429653756,9.33197907,142.85,142.84,8.40062708]
[1728429654160,9.32690624,142.85,142.84,8.40062708]
[1728429655674,5.18378545,142.85,142.84,8.40062708]
[1728429655978,4.14357806,142.85,142.84,8.40062708]
[1728429656165,6.9983,142.89,142.84,8.40062708]
[1728429657459,4.14296709,142.88,142.84,8.40062708]
[1728429657662,6.9983,142.89,142.84,8.40062708]
[1728429658483,4.14284288,142.88,142.84,8.40062708]
[1728429658867,4.1428301,142.87,142.84,8.40062708]
[1728429659062,4.14284288,142.88,142.84,8.40062708]
[1728429659276,5.17728636,142.87,142.84,8.40062708]
[1728429659455,9.3200044,142.87,142.84,8.40062708]
[1728429659655,4.14271804,142.86,142.84,8.40062708]
[1728429659857,4.14271804,142.85,142.84,8.40062708]
[1728429660060,4.14271804,142.85,142.84,7.0007]
[1728429661693,4.14284288,142.88,142.85,23.776884]
[1728429661999,4.14284288,142.88,142.87,6.9993]
[1728429662160,8.28347513,142.88,142.87,6.9993]
[1728429662360,8.28347513,142.88,142.85,19.9399841]
[1728429662562,4.14284288,142.88,142.86,6.9998]
[1728429664387,4.14284288,142.88,142.87,6.9993]
[1728429669088,4.14284288,142.88,142.85,17.5004]
[1728429669584,15.0417,142.92,142.85,17.5004]
[1728429669987,6.9985,142.89,142.85,24.5007]
[1728429672086,6.9985,142.89,142.85,17.5004]
[1728429675194,6.9985,142.89,142.85,18.90024092]
[1728429676393,6.9985,142.89,142.85,25.90044092]
[1728429677091,6.9979,142.9,142.86,6.9998]
[1728429677272,6.997,142.92,142.88,6.9988]
[1728429677471,6.997,142.92,142.86,12.9397841]
[1728429677796,6.997,142.92,142.88,6.9988]
[1728429680093,6.997,142.92,142.88,8.39834356]
[1728429681695,6.997,142.92,142.88,6.9988]
[1728429682515,6.9974,142.91,142.87,24.4971]
[1728429682691,6.9982,142.9,142.85,7.0002]
[1728429683390,6.9982,142.9,142.86,8.39941611]
[1728429684197,6.9974,142.91,142.86,1.39971611]
[1728429684398,6.9974,142.91,142.87,6.9993]
[1728429686206,23.776884,142.93,142.85,7.0002]
[1728429686500,6.9984,142.89,142.85,7.0002]
[1728429687295,6.9984,142.89,142.84,17.5015]
[1728429687296,6.9984,142.89,142.84,24.5022]
[1728429687505,6.9989,142.88,142.84,17.5015]
[1728429687680,6.2646,142.91,142.84,17.5015]
[1728429687882,6.9984,142.89,142.84,24.5022]
[1728429688579,6.9989,142.88,142.84,24.5022]
[1728429689083,6.2646,142.91,142.85,7.0003]
[1728429689280,6.9982,142.9,142.85,7.0003]
[1728429689483,6.9982,142.9,142.84,17.5015]
[1728429689484,6.2646,142.91,142.84,17.5015]
[1728429689690,6.9985,142.89,142.84,24.5019]
[1728429690682,6.999,142.88,142.84,24.5019]
[1728429692005,6.999,142.88,142.84,17.5015]
[1728429693904,6.999,142.88,142.84,18.90149121]
[1728429694510,6.2646,142.91,142.8,0.2]
[1728429694511,17.4947,142.9,142.8,0.2]
[1728429694679,7.0011,142.84,142.8,0.2]
[1728429697701,7.0,142.86,142.81,7.0022]
[1728429699611,12.20856341,142.89,142.8,17.7064]
[1728429699612,12.20856341,142.89,142.82,18.90414758]
[1728429699787,4.21277006,142.9,142.82,18.90414758]
[1728429701010,6.999,142.88,142.84,7.0007]
[1728429701204,6.999,142.88,142.84,8.40068748]
[1728429701909,6.999,142.88,142.84,7.0007]
[1728429702903,6.999,142.88,142.83,7.0012]
[1728429705204,6.999,142.88,142.84,1.3999889]
[1728429705917,23.776884,142.89,142.82,17.504]
[1728429706219,7.0003,142.86,142.82,17.504]
[1728429706522,7.0003,142.86,142.82,24.5058]
[1728429710454,7.0003,142.86,142.8,6.3147]
[1728429710455,23.776884,142.87,142.8,0.2]
[1728429710715,7.0009,142.84,142.8,0.2]
[1728429711100,7.0009,142.84,142.8,7.2026]
[1728429712994,7.0009,142.84,142.8,8.60294947]
[1728429714000,6.9999,142.86,142.8,1.60034947]
[1728429715008,6.9999,142.86,142.81,7.0021]
[1728429715209,23.776884,142.87,142.81,7.0021]
[1728429715519,7.0005,142.85,142.8,7.2026]